bitfinex/quotes_ETHUSD_20250605
["timestamp","ask_amount","ask_price","bid_price","bid_amount"]
[1749150445242,0.36201786,2572.7,2572.4,3.8874203]
[1749150445528,6.601,2572.4,2572.3,3.88750732]
[1749150445709,1.796,2572.6,2572.5,3.88726919]
[1749150445906,0.7678,2572.8,2572.6,3.88700747]
[1749150446105,6.6,2572.7,2572.6,3.88700747]
[1749150446294,2.5638,2572.8,2572.2,3.88772051]
[1749150446639,2.5638,2572.8,2572.7,3.88696699]
[1749150446809,1.796,2572.8,2572.7,3.88696699]
[1749150447129,8.397,2572.8,2572.7,3.88696699]
[1749150451768,18.98192193,2572.8,2572.2,3.8876461]
[1749150451974,18.98192193,2572.8,2572.4,3.88741604]
[1749150452265,2.28686581,2572.7,2572.4,3.88741604]
[1749150452452,6.17384515,2572.7,2572.2,3.88765017]
[1749150452771,0.786,2572.5,2572.0,3.88796036]
[1749150453070,0.786,2572.5,2571.7,4.69887968]
[1749150453273,3.88763741,2572.3,2571.8,3.88823555]
[1749150453448,8.78776374,2572.2,2571.4,0.38004454]
[1749150453649,8.399,2572.2,2571.8,3.8882501]
[1749150453851,0.786,2572.1,2571.7,3.88843891]
[1749150454044,4.67392063,2572.1,2571.1,0.02]
[1749150454375,0.8003,2571.8,2571.2,3.88923459]
[1749150454573,7.65992219,2571.7,2571.3,3.88896284]
[1749150454741,1.796,2571.6,2571.3,3.88896284]
[1749150454941,1.796,2571.6,2571.4,3.88882075]
[1749150455377,1.796,2571.6,2571.5,3.88878086]
[1749150455876,8.399,2571.6,2571.5,3.88878086]
[1749150457046,8.399,2571.6,2571.1,0.02]
[1749150457248,8.399,2571.6,2571.5,3.88878086]
[1749150457461,10.29882219,2571.6,2571.5,3.88878086]
[1749150457976,10.29882219,2571.6,2571.4,3.88884828]
[1749150458279,10.29882219,2571.6,2571.3,3.88899979]
[1749150458573,10.29882219,2571.6,2571.2,3.88915807]
[1749150458574,4.0,2571.5,2571.2,3.88915807]
[1749150458977,4.0,2571.5,2571.1,3.90928576]
[1749150459288,0.8304,2571.3,2571.2,3.88920966]
[1749150459981,4.8304,2571.3,2571.2,3.88920966]
[1749150460551,4.8304,2571.3,2571.1,3.90938484]
[1749150460552,4.8304,2571.3,2571.1,3.90930145]
[1749150460940,4.8304,2571.3,2571.1,0.02]
[1749150461947,4.8304,2571.3,2571.1,3.90931057]
[1749150462167,4.0,2571.3,2571.2,3.88923459]
[1749150462368,10.588,2571.3,2571.2,3.88923459]
[1749150462601,12.385,2571.3,2571.2,3.88923459]
[1749150462777,12.386,2571.3,2571.2,3.88923459]
[1749150464041,10.587,2571.3,2571.2,3.88923459]
[1749150464941,10.57669369,2571.3,2571.2,3.88923459]
[1749150465478,10.57669369,2571.3,2571.1,0.02]
[1749150465665,0.8186,2571.2,2571.1,0.02]
[1749150466276,4.0,2571.2,2571.1,0.02]
[1749150466517,18.50675652,2571.2,2571.1,0.02]
[1749150467021,8.70783459,2571.2,2571.1,0.02]
[1749150467190,28.27717785,2571.2,2571.1,0.02]
[1749150467512,14.59002133,2571.2,2571.1,0.02]
[1749150468716,6.20202133,2571.2,2571.1,0.02]
[1749150469016,6.20202133,2571.2,2571.1,3.90938586]
[1749150469017,16.38702133,2571.2,2571.1,3.90938586]
[1749150469218,15.0036,2571.2,2571.1,0.02]
[1749150470284,15.0036,2571.2,2571.1,3.90938586]
[1749150470619,14.175,2571.2,2571.1,3.90938586]
[1749150470787,14.175,2571.2,2571.1,0.02]
[1749150470987,5.8,2571.2,2571.1,5.0795368]
[1749150471316,1.8,2571.2,2571.1,21.0795368]
[1749150471527,6.587,2571.3,2571.2,19.88923459]
[1749150472386,0.8096,2572.0,2571.8,3.88821995]
[1749150472620,0.8096,2572.0,2571.1,5.0795368]
[1749150472621,1.786,2571.8,2571.7,3.88847843]
[1749150472790,4.0,2571.9,2571.8,3.88832724]
[1749150472998,12.401,2571.9,2571.8,3.88832724]
[1749150473387,5.786,2571.9,2571.8,3.88832724]
[1749150473589,12.399,2571.9,2571.8,3.88832724]
[1749150474245,12.397,2571.9,2571.8,3.88832724]
[1749150474469,4.0,2571.9,2571.8,4.74679514]
[1749150474756,10.614,2571.9,2571.8,4.74679514]
[1749150475115,6.614,2571.9,2571.8,4.74679514]
[1749150475318,1.786,2572.4,2572.3,3.88757143]
[1749150475654,8.397,2572.4,2572.3,3.88757143]
[1749150476343,12.397,2572.4,2572.3,3.88757143]
[1749150478851,1.786,2572.4,2572.3,3.88757143]
[1749150479554,24.404,2573.0,2572.9,3.88666485]
[1749150479748,20.791,2573.0,2572.9,3.88666485]
[1749150480109,20.787,2573.0,2572.9,3.88666485]
[1749150480328,20.787,2573.0,2572.7,3.88687137]
[1749150480646,20.787,2573.0,2572.7,3.88696699]
[1749150480647,4.0,2572.8,2572.7,3.88696699]
[1749150481526,10.606,2572.8,2572.7,3.88696699]
[1749150481727,10.606,2572.8,2572.7,4.7396855]
[1749150481953,4.0,2572.8,2572.7,4.7396855]
[1749150482161,4.0,2572.8,2572.7,5.4927855]
[1749150482355,1.785,2573.4,2573.3,3.8860607]
[1749150482517,12.391,2573.4,2573.3,3.8860607]
[1749150482718,12.39,2573.4,2573.3,3.8860607]
[1749150483054,12.389,2573.4,2573.3,3.8860607]
[1749150483256,0.7963,2573.3,2572.8,3.88667926]
[1749150483421,0.7963,2573.3,2573.0,3.88651364]
[1749150483620,0.7963,2573.3,2572.9,3.88665335]
[1749150483822,0.7963,2573.3,2573.1,3.88632766]
[1749150484017,6.605,2573.2,2573.0,3.88649372]
[1749150484224,6.605,2573.2,2573.1,3.88636275]
[1749150484442,6.605,2573.2,2573.0,3.88651293]
[1749150484834,4.0,2573.1,2573.0,3.88640286]
[1749150485520,4.0,2573.1,2572.9,3.88664685]
[1749150485716,5.14013,2573.1,2572.5,0.8229]
[1749150485921,4.0,2573.1,2573.0,3.88651379]
[1749150487146,10.608,2573.1,2573.0,3.88651379]
[1749150487461,6.608,2573.1,2573.0,3.88651379]
[1749150487953,7.4113,2573.1,2572.9,3.8866603]
[1749150488119,7.4113,2573.1,2573.0,3.88651379]
[1749150488986,11.4113,2573.1,2573.0,3.88651379]
[1749150490759,11.4113,2573.1,2572.7,3.8868479]
[1749150491283,11.4113,2573.1,2572.8,3.88679986]
[1749150491598,13.11954477,2573.1,2572.1,0.55]
[1749150491803,3.88670175,2572.9,2572.2,0.821]
[1749150491975,3.88670175,2572.9,2572.5,3.88726182]
[1749150492177,7.88659347,2573.0,2572.5,3.88726182]
[1749150492356,4.0,2573.0,2572.3,3.88757143]
[1749150492714,4.0,2573.0,2572.9,3.88666485]
[1749150492979,12.381,2573.0,2572.9,3.88666485]
[1749150493191,4.0,2573.0,2572.9,3.88666485]
[1749150493360,10.595,2573.0,2572.9,3.88666485]
[1749150493681,10.595,2573.0,2572.9,4.73922296]
[1749150493847,10.594,2573.0,2572.9,4.73922296]
[1749150494465,10.596,2573.0,2572.9,4.73922296]
[1749150494779,0.7981,2573.5,2573.3,3.88601692]
[1749150494990,8.38,2573.4,2573.3,3.8860607]
[1749150495200,1.68313366,2573.6,2573.5,3.88575869]
[1749150495358,8.27713366,2573.6,2573.2,0.7831]
[1749150495568,8.27713366,2573.6,2573.3,3.88599185]
[1749150495742,8.27713366,2573.6,2573.2,0.7831]
[1749150495743,8.27713366,2573.6,2573.0,3.88645348]
[1749150496062,9.36022703,2573.6,2572.9,0.7953]
[1749150496261,9.36022703,2573.6,2573.3,3.8860386]
[1749150497157,1.68313366,2573.6,2573.5,3.88575869]
[1749150497607,8.27013366,2573.6,2573.5,3.88575869]
[1749150498157,8.27013366,2573.6,2573.4,4.67876125]
[1749150498485,8.27013366,2573.6,2573.4,3.88589955]
[1749150498799,8.27013366,2573.6,2572.6,0.7929]
[1749150498958,13.68487377,2573.4,2572.9,3.88657268]
[1749150499159,9.79892193,2573.4,2572.8,3.88671892]
[1749150499453,13.68483866,2573.4,2572.6,0.7929]
[1749150499659,9.79892193,2573.4,2573.0,3.8864171]
[1749150500011,3.88606398,2573.3,2572.8,3.8867202]
[1749150500184,6.588,2573.2,2572.8,3.8867202]
[1749150500355,1.785,2573.1,2572.8,3.8867202]
[1749150500879,10.60832193,2573.0,2572.4,3.88728106]
[1749150501097,10.60832193,2573.0,2572.5,3.8871268]
[1749150501300,10.60832193,2573.0,2572.7,3.88690405]
[1749150501468,12.50645412,2573.0,2572.7,3.88690405]
[1749150501668,19.88668417,2572.9,2572.4,3.88736147]
[1749150501869,6.586,2572.8,2572.4,3.88736147]
[1749150502964,6.586,2572.8,2572.5,3.88726914]
[1749150503367,6.586,2572.8,2572.5,3.88726857]
[1749150504192,0.8094,2573.0,2572.9,3.88666485]
[1749150504391,0.8094,2573.0,2572.2,3.88765777]
[1749150504392,8.367,2573.0,2572.8,3.88673558]
[1749150504914,8.367,2573.0,2572.9,3.88666485]
[1749150505118,1.785,2573.3,2573.0,3.88645921]
[1749150505260,0.73245339,2573.7,2573.5,3.88561925]
[1749150505467,1.805,2573.9,2573.5,3.88561925]
[1749150505662,6.582,2573.8,2573.6,3.88558491]
[1749150505864,0.02,2573.9,2573.3,0.55]
[1749150506093,0.02,2573.9,2573.8,4.65700577]
[1749150506269,0.02,2573.9,2573.8,5.5112496]
[1749150506500,6.608,2573.9,2573.8,5.5112496]
[1749150506801,0.02,2573.9,2573.8,6.0612496]
[1749150507000,6.607,2573.9,2573.8,6.0612496]
[1749150507203,0.02,2573.9,2573.8,6.0612496]
[1749150507366,6.606,2573.9,2573.8,6.0612496]
[1749150507800,0.02,2573.9,2573.8,6.0612496]
[1749150508300,0.02,2573.9,2573.8,31.86017153]
[1749150508508,0.02,2573.9,2573.8,22.0612496]
[1749150511665,0.02,2573.9,2573.8,31.86017153]
[1749150514305,0.02,2573.9,2573.8,22.0612496]
[1749150514901,0.02,2573.9,2573.8,21.5112496]
[1749150515901,0.02,2573.9,2573.8,22.0612496]
[1749150516927,0.66666667,2574.6,2574.5,20.43424936]
[1749150517226,0.66666667,2574.6,2574.5,23.00151796]
[1749150517598,0.66666667,2574.6,2574.5,23.81631796]
[1749150517789,0.02,2574.9,2574.8,4.43379679]
[1749150517989,0.8247,2576.3,2575.8,3.88228899]
[1749150518194,6.603,2575.9,2575.8,3.88228899]
[1749150518419,6.603,2575.9,2575.8,4.7397593]
[1749150518728,6.603,2575.9,2575.8,3.88228899]
[1749150519427,0.02,2575.9,2575.8,3.88228899]
[1749150519632,6.598,2575.9,2575.8,3.88228899]
[1749150519834,0.02,2575.9,2575.8,4.82927256]
[1749150520136,0.02,2575.9,2575.8,5.63927256]
[1749150520325,0.02,2575.9,2575.8,22.59144123]
[1749150520634,6.6,2575.9,2575.8,22.59144123]
[1749150522339,0.02,2575.9,2575.8,22.59144123]
[1749150526044,0.02,2575.9,2575.8,21.78144123]
[1749150526736,6.583,2575.9,2575.8,21.78144123]
[1749150527035,6.583,2575.9,2575.8,4.82927256]
[1749150527948,6.583,2575.9,2575.8,4.27927256]
[1749150529299,6.578,2575.9,2575.8,4.82927256]
[1749150530253,6.578,2575.9,2575.3,0.7617]
[1749150530461,6.578,2575.9,2575.8,3.88228899]
[1749150530640,0.8237,2575.8,2574.9,0.51]
[1749150530802,4.3957,2575.8,2575.1,3.88334433]
[1749150531008,0.8237,2575.7,2575.1,0.3926487]
[1749150531266,0.8237,2575.7,2575.6,3.88259046]
[1749150531908,1.8,2575.8,2575.7,3.88243972]
[1749150532116,8.364,2575.8,2575.7,3.88243972]
[1749150532316,8.363,2575.8,2575.7,4.2729916]
[1749150533607,8.363,2575.8,2575.5,3.88264957]
[1749150533608,0.7843,2575.7,2575.5,3.88264957]
[1749150533812,0.7843,2575.7,2575.6,3.88259046]
[1749150534357,0.7843,2575.7,2575.1,19.88323137]
[1749150534358,2.68092219,2575.7,2575.4,3.88283985]
[1749150534715,2.68092219,2575.7,2575.6,3.88259046]
[1749150535442,0.7843,2575.7,2575.6,3.88259046]
[1749150536561,1.8,2575.8,2575.7,3.88243972]
[1749150536754,8.361,2575.8,2575.7,3.88243972]
[1749150537930,8.356,2575.8,2575.7,3.88243972]
[1749150540410,8.356,2575.8,2575.7,19.88243972]
[1749150541648,1.8,2575.8,2575.7,19.88243972]
[1749150541842,8.346,2575.8,2575.7,21.98379737]
[1749150542085,1.8,2575.8,2575.7,21.98379737]
[1749150542348,8.345,2575.8,2575.7,21.98379737]
[1749150542756,8.343,2575.8,2575.7,21.98379737]
[1749150542957,8.343,2575.8,2575.7,19.88243972]
[1749150544397,1.8,2575.8,2575.7,20.43243972]
[1749150544686,0.02,2575.9,2575.8,19.88228899]
[1749150544894,2.5325,2576.8,2576.7,3.88093297]
[1749150545049,7.3055,2576.8,2576.7,3.88093297]
[1749150545481,7.3045,2576.8,2576.7,3.88093297]
[1749150545692,7.3035,2576.8,2576.7,3.88093297]
[1749150546051,0.7615,2576.8,2576.7,3.88093297]
[1749150546257,7.3025,2576.8,2576.7,3.88093297]
[1749150546469,7.66456259,2576.8,2576.1,16.0]
[1749150546786,0.36206022,2576.7,2576.4,3.88130739]
[1749150547086,9.08745626,2576.8,2576.0,16.0]
[1749150547087,0.36186284,2576.6,2576.0,16.0]
[1749150547283,0.8204,2576.5,2575.9,19.88213828]
[1749150547491,0.8204,2576.3,2575.9,3.88213828]
[1749150547666,0.8204,2576.3,2575.4,3.88289197]
[1749150547667,6.54,2576.2,2575.4,3.88289197]
[1749150547867,6.54,2576.2,2575.9,3.88200155]
[1749150548169,0.8204,2576.3,2576.2,3.8816862]
[1749150548392,6.90406446,2576.3,2576.2,3.8816862]
[1749150548696,6.542,2576.3,2576.2,3.8816862]
[1749150549259,6.542,2576.3,2576.1,3.88171193]
[1749150549260,7.3084,2576.3,2576.1,3.88171193]
[1749150549497,0.36214009,2576.2,2575.9,3.88204208]
[1749150549657,1.771,2576.2,2576.0,3.88191913]
[1749150549862,2.16211946,2576.1,2576.0,3.88191913]
[1749150550081,2.1621023,2576.1,2576.0,3.88191913]
[1749150550362,2.1621023,2576.1,2575.9,3.88207045]
[1749150550363,0.7821,2576.0,2575.9,3.88207045]
[1749150550785,1.14429883,2576.0,2575.9,3.88207045]
[1749150550981,1.14429039,2576.0,2575.9,3.88207045]
[1749150551196,0.7821,2576.0,2575.9,3.88207045]
[1749150551561,0.7821,2576.0,2575.8,3.88227164]
[1749150551763,6.55,2575.9,2575.8,3.88228899]
[1749150551962,0.7821,2576.0,2575.9,3.88213828]
[1749150552165,9.46012222,2576.0,2575.9,3.88213828]
[1749150552490,9.46011451,2576.0,2575.9,3.88213828]
[1749150552689,9.46011451,2576.0,2575.4,3.88281378]
[1749150552985,9.0981,2576.0,2575.7,3.88238644]
[1749150553189,0.36205788,2575.9,2575.6,3.88251678]
[1749150553374,0.7823,2575.8,2575.0,0.7646]
[1749150553577,0.7823,2575.8,2575.6,3.88255548]
[1749150553770,0.7823,2575.8,2575.7,3.88243972]
[1749150553962,6.91101795,2575.8,2575.7,3.88243972]
[1749150554165,6.549,2575.8,2575.7,3.88243972]
[1749150554596,0.36205788,2575.9,2575.8,3.88228899]
[1749150554977,6.91005788,2575.9,2575.8,3.88228899]
[1749150556005,0.36205788,2575.9,2575.8,3.88228899]
[1749150556199,6.90705788,2575.9,2575.8,3.88228899]
[1749150556501,0.36205788,2575.9,2575.8,3.88228899]
[1749150556803,6.90605788,2575.9,2575.8,3.88228899]
[1749150557165,0.36205788,2575.9,2575.8,3.88228899]
[1749150557369,6.90405788,2575.9,2575.8,3.88228899]
[1749150559118,6.90405788,2575.9,2575.3,0.8057]
[1749150559266,0.8326,2575.8,2575.6,3.88258518]
[1749150559609,0.8326,2575.8,2575.7,3.88243972]
[1749150560113,0.8326,2575.8,2575.5,3.88263257]
[1749150560458,0.8326,2575.8,2575.7,3.88243972]
[1749150560875,0.36205788,2575.9,2575.8,3.88228899]
[1749150561219,0.36205788,2575.9,2575.7,3.88243972]
[1749150561220,6.90305788,2575.9,2575.7,3.88235753]
[1749150561391,6.541,2575.8,2575.2,0.8205]
[1749150561717,6.541,2575.8,2575.7,3.88243972]
[1749150561910,6.541,2575.8,2575.6,3.88250553]
[1749150562095,6.541,2575.8,2575.5,3.88268058]
[1749150562510,0.7748,2575.7,2574.9,0.7849]
[1749150562807,10.55972939,2575.7,2575.3,3.88293543]
[1749150562985,12.30600812,2575.7,2575.6,3.88259046]
[1749150563167,0.7748,2575.7,2575.6,3.88259046]
[1749150563606,0.7748,2575.7,2575.5,3.8826536]
[1749150563793,0.7748,2575.7,2575.6,3.88259046]
[1749150564803,9.0728,2575.7,2575.6,3.88259046]
[1749150565510,9.0728,2575.7,2574.9,1.16801571]
[1749150565712,9.0728,2575.7,2575.4,3.88285107]
[1749150565902,9.0728,2575.7,2575.5,3.88272869]
[1749150566579,9.0728,2575.7,2575.4,3.88287063]
[1749150566780,9.0728,2575.7,2575.4,3.88280745]
[1749150566980,10.40450074,2575.7,2575.4,3.88282446]
[1749150567175,10.40450074,2575.7,2575.0,3.88349514]
[1749150567516,9.0728,2575.7,2575.5,3.88262561]
[1749150570239,9.0728,2575.7,2575.2,3.88319353]
[1749150570398,9.0728,2575.7,2575.6,3.88259046]
[1749150570787,16.36205788,2575.9,2575.8,3.88228899]
[1749150571029,4.36205788,2575.9,2575.8,3.88228899]
[1749150571322,4.36205788,2575.9,2575.8,4.65875867]
[1749150571623,0.36205788,2575.9,2575.8,4.65875867]
[1749150571810,0.36205788,2575.9,2575.8,5.96265867]
[1749150572011,6.88705788,2575.9,2575.8,5.96265867]
[1749150572313,6.88705788,2575.9,2575.8,4.65875867]
[1749150572527,6.89005788,2575.9,2575.8,4.65875867]
[1749150574309,8.69005788,2575.9,2575.8,4.65875867]
[1749150575003,8.69005788,2575.9,2575.8,20.65875867]
[1749150575921,8.69005788,2575.9,2575.8,3.88228899]
[1749150576687,2.16205788,2575.9,2575.8,4.43228899]
[1749150576888,6.88005788,2575.9,2575.8,4.43228899]
[1749150578010,6.88005788,2575.9,2575.8,3.88228899]
[1749150578800,6.87905788,2575.9,2575.8,4.43228899]
[1749150579106,6.87905788,2575.9,2575.8,6.01645867]
[1749150582547,0.36205788,2575.9,2575.8,22.01645867]
[1749150585211,0.36205788,2575.9,2575.8,31.80138806]
[1749150589598,0.36205788,2575.9,2575.8,22.01645867]
[1749150589804,0.36205788,2575.9,2575.8,21.46645867]
[1749150590804,0.36205788,2575.9,2575.8,22.01645867]
[1749150591557,0.36205788,2575.9,2575.8,5.46645867]
[1749150592051,0.36205788,2575.9,2575.8,22.01645867]
[1749150593927,6.87705788,2575.9,2575.8,21.26375867]
[1749150594538,8.67705788,2575.9,2575.8,5.26375867]
[1749150595647,8.67705788,2575.9,2575.8,4.43228899]
[1749150596942,8.67705788,2575.9,2575.8,3.88228899]
[1749150602392,8.67605788,2575.9,2575.8,4.43228899]
[1749150604946,2.16205788,2575.9,2575.8,9.13524255]
[1749150605149,2.16205788,2575.9,2575.8,27.67354255]
[1749150605379,0.36205788,2575.9,2575.8,30.82913759]
[1749150605889,0.36205788,2575.9,2575.8,8.37918403]
[1749150606088,0.36205788,2575.9,2575.8,5.22358899]
[1749150606697,0.36205788,2575.9,2575.8,4.43228899]
[1749150607958,0.36205788,2575.9,2575.8,5.20678899]
[1749150608495,0.02,2576.9,2576.8,4.43078236]
[1749150608700,0.02,2576.9,2576.8,5.26195095]
[1749150609488,0.02,2576.9,2576.3,5.62747308]
[1749150609688,0.02,2576.9,2575.8,19.88215976]
[1749150609689,0.7894,2576.8,2576.6,3.8810047]
[1749150610303,0.7894,2576.8,2576.7,3.88093297]
[1749150610616,0.7894,2576.8,2576.1,0.55]
[1749150610617,0.7894,2576.8,2576.6,3.88106627]
[1749150610790,0.7894,2576.8,2576.5,3.88119275]
[1749150611130,0.7894,2576.8,2576.6,3.88098874]
[1749150611332,6.513,2576.7,2576.6,3.88098874]
[1749150612199,0.7894,2576.8,2576.7,3.88093297]
[1749150612399,0.02,2576.9,2576.8,3.88078236]
[1749150612632,16.02,2576.9,2576.8,3.88078236]
[1749150612832,22.533,2576.9,2576.8,3.88078236]
[1749150613033,16.0,2576.8,2576.7,3.88085149]
[1749150613336,6.533,2576.9,2576.7,3.88085149]
[1749150613492,6.533,2576.9,2576.5,3.88118232]
[1749150613697,16.8014,2576.8,2576.4,3.88136233]
[1749150613936,16.8014,2576.8,2576.4,3.88124428]
[1749150614131,16.8014,2576.8,2576.5,3.88121025]
[1749150614921,16.0,2576.6,2576.1,0.55]
[1749150615114,16.0,2576.6,2576.5,3.88123423]
[1749150616002,16.0,2576.6,2576.1,3.88172564]
[1749150616003,0.7735,2576.5,2576.1,3.88172564]
[1749150616204,0.7735,2576.5,2575.7,3.88242534]
[1749150616205,0.7735,2576.5,2576.2,3.88167288]
[1749150616988,0.7735,2576.5,2576.3,3.88150258]
[1749150617350,0.7735,2576.5,2576.4,3.88138487]
[1749150617681,2.5413,2576.8,2576.7,3.88093297]
[1749150618180,0.02,2576.9,2576.8,3.88078236]
[1749150618379,6.533,2576.9,2576.8,3.88078236]
[1749150623219,6.533,2576.9,2576.6,3.88102997]
[1749150623510,0.7661,2576.8,2576.6,3.88100519]
[1749150623677,0.7661,2576.8,2576.7,3.88093297]
[1749150624081,26.54742297,2576.8,2576.0,2.4964]
[1749150624423,29.85546527,2576.8,2576.5,3.8812266]
[1749150624601,29.85546527,2576.8,2576.4,3.88131159]
[1749150625094,29.85546527,2576.8,2576.5,3.88114148]
[1749150625281,1.8,2576.6,2576.5,3.88123423]
[1749150625870,1.8,2576.6,2576.4,3.88135358]
[1749150625871,1.8,2576.6,2576.4,3.88134058]
[1749150626077,6.512,2576.5,2576.4,3.88134058]
[1749150627094,2.6294,2576.6,2576.5,3.88123423]
[1749150627265,9.1414,2576.6,2576.5,3.88123423]
[1749150629682,1.8,2576.6,2576.5,3.88123423]
[1749150629895,1.8,2576.6,2576.5,4.65749555]
[1749150630297,1.8,2576.6,2576.5,5.20749555]
[1749150630474,0.02,2576.9,2576.8,4.43078236]
[1749150630912,0.02,2576.9,2576.8,5.22668236]
[1749150632403,6.532,2576.9,2576.8,5.22668236]
[1749150632601,6.532,2576.9,2576.8,6.52554916]
[1749150635007,0.02,2576.9,2576.8,6.52554916]
[1749150635186,6.531,2576.9,2576.8,6.52554916]
[1749150635506,0.02,2576.9,2576.8,6.52554916]
[1749150635902,6.531,2576.9,2576.8,6.52554916]
[1749150636994,6.531,2576.9,2576.8,5.72964916]
[1749150636995,0.02,2576.9,2576.8,5.72964916]
[1749150637300,6.531,2576.9,2576.8,5.72964916]
[1749150640084,0.02,2576.9,2576.8,5.72964916]
[1749150640419,6.531,2576.9,2576.8,5.72964916]
[1749150640798,6.90235556,2576.9,2576.8,5.72964916]
[1749150641827,7.52129727,2576.9,2576.8,5.72964916]
[1749150642239,6.90235556,2576.9,2576.8,5.17964916]
[1749150642545,6.90235556,2576.9,2576.8,3.88078236]
[1749150642703,6.90235556,2576.9,2576.8,19.88078236]
[1749150643089,6.90235556,2576.9,2576.8,3.88078236]
[1749150643495,6.90235556,2576.9,2575.9,3.88207595]
[1749150643737,0.46426644,2576.4,2576.3,19.88153553]
[1749150643922,6.88135556,2576.4,2576.3,20.43153553]
[1749150645605,6.88135556,2576.4,2576.3,4.43153553]
[1749150645832,6.88135556,2576.4,2576.3,5.20793553]
[1749150650718,6.88135556,2576.4,2576.3,4.43153553]
[1749150651237,6.88135556,2576.4,2575.9,0.7982]
[1749150651399,1.40262192,2576.1,2575.4,4.68098989]
[1749150651597,1.40262192,2576.1,2575.2,3.88313462]
[1749150651598,0.61902192,2575.8,2575.5,3.88274121]
[1749150651816,0.37135556,2575.7,2575.6,3.88259046]
[1749150652131,0.37135556,2575.7,2575.1,0.15716826]
[1749150652132,16.0,2575.6,2575.1,0.15716826]
[1749150652341,10.39438551,2575.2,2574.5,4.6623176]
[1749150652493,10.39438551,2575.2,2574.2,0.7992]
[1749150652494,17.40227034,2575.0,2574.2,0.7992]
[1749150652701,0.4639429,2574.8,2574.7,3.8838294]
[1749150652896,0.37135556,2574.8,2574.7,3.88394764]
[1749150653124,23.34337168,2574.8,2574.6,3.88401875]
[1749150653330,23.34337168,2574.8,2574.1,0.02]
[1749150653331,0.37135556,2574.7,2574.1,0.02]
[1749150653511,23.12767034,2574.8,2574.1,0.02]
[1749150653512,0.83344741,2574.6,2574.5,3.88424936]
[1749150653730,0.37135556,2574.6,2574.5,3.88424936]
[1749150654414,0.83344741,2574.6,2574.5,3.88424936]
[1749150654618,0.37135556,2574.6,2574.5,3.88424936]
[1749150655836,0.37135556,2574.6,2574.4,3.88434264]
[1749150656039,0.37135556,2574.5,2574.3,3.88452224]
[1749150656240,10.23780702,2574.8,2574.3,4.2749726]
[1749150656448,6.87970794,2574.7,2574.4,3.88427382]
[1749150656740,6.87970794,2574.7,2574.3,3.88452038]
[1749150656741,0.36870794,2574.6,2574.5,3.88424936]
[1749150656945,0.36870794,2574.6,2574.2,3.88470204]
[1749150657120,10.14442311,2574.5,2574.4,3.88437757]
[1749150657333,10.14442311,2574.5,2574.4,3.88440024]
[1749150657707,9.77571517,2574.5,2574.4,3.88440024]
[1749150658644,10.54861517,2574.5,2574.4,3.88440024]
[1749150659810,0.7729,2574.5,2574.4,3.88440024]
[1749150660010,0.7729,2574.5,2574.4,4.6612931]
[1749150660252,0.7729,2574.5,2574.4,3.88440024]
[1749150660454,17.14049313,2574.5,2574.1,0.02]
[1749150660607,9.77571517,2574.2,2574.1,0.02]
[1749150660814,17.4282083,2574.2,2574.1,0.02]
[1749150661348,39.60237016,2574.2,2574.1,0.02]
[1749150661661,36.01920275,2574.2,2574.1,0.02]
[1749150661812,35.55947625,2574.2,2574.1,0.02]
[1749150662506,39.90390479,2574.2,2574.1,0.02]
[1749150662911,39.90185481,2574.2,2574.1,0.02]
[1749150663321,16.0,2574.1,2573.1,0.02]
[1749150663523,9.77571517,2573.2,2573.1,0.02]
[1749150663721,36.54131701,2573.2,2573.1,0.02]
[1749150663953,37.29311701,2573.2,2573.1,0.02]
[1749150664324,37.29311701,2573.2,2572.4,3.8874203]
[1749150664325,9.77571517,2572.5,2572.4,3.8874203]
[1749150664523,9.77571517,2572.5,2572.1,0.02]
[1749150664524,17.04161517,2572.5,2572.1,3.90775564]
[1749150664750,17.04161517,2572.5,2572.2,3.88772257]
[1749150665050,17.04161517,2572.5,2572.1,0.02]
[1749150665051,17.04161517,2572.5,2572.4,3.8874203]
[1749150665354,17.04161517,2572.5,2572.1,0.02]
[1749150665669,9.77571517,2572.2,2572.1,0.02]
[1749150665886,9.77571517,2572.2,2572.1,3.90787372]
[1749150666190,16.0,2572.4,2572.3,3.88757143]
[1749150666483,22.514,2572.4,2572.3,3.88757143]
[1749150666688,22.514,2572.4,2572.1,0.02]
[1749150666689,22.514,2572.4,2572.1,3.90779666]
[1749150666993,22.514,2572.4,2572.2,3.88770934]
[1749150667135,22.514,2572.4,2572.1,0.02]
[1749150667136,23.70134146,2572.4,2572.1,0.02]
[1749150667341,25.77571517,2572.2,2572.1,0.02]
[1749150667811,26.57011517,2572.2,2572.1,0.02]
[1749150668080,26.57011517,2572.2,2571.1,0.02]
[1749150668081,9.77571517,2571.5,2571.2,3.8890995]
[1749150668239,6.516,2571.4,2571.1,0.02]
[1749150668444,6.516,2571.4,2571.1,3.90936836]
[1749150668646,6.516,2571.4,2571.1,0.02]
[1749150669058,16.0,2571.4,2571.3,3.88908334]
[1749150669260,22.518,2571.4,2571.1,0.02]
[1749150669568,22.518,2571.4,2571.3,3.88908334]
[1749150670138,16.0,2571.4,2571.3,3.88908334]
[1749150670342,22.518,2571.4,2571.3,3.88908334]
[1749150670578,2.18932399,2571.5,2571.4,3.88893209]
[1749150670966,2.18932399,2571.5,2571.4,4.43893209]
[1749150671344,0.8111,2572.4,2572.3,3.88757143]
[1749150671542,12.32851517,2572.8,2572.2,3.88770426]
[1749150671741,6.88041851,2572.7,2572.6,3.88711809]
[1749150671973,22.517,2572.7,2572.6,3.88711809]
[1749150672161,16.0,2572.7,2572.6,3.88711809]
[1749150672366,0.8068,2572.8,2572.7,3.88696699]
[1749150672560,9.77571517,2573.2,2573.1,3.88636275]
[1749150672561,0.7859,2573.2,2573.1,3.88636275]
[1749150672759,7.66647206,2573.2,2573.1,3.88636275]
[1749150672963,23.66647206,2573.2,2573.1,3.88636275]
[1749150673391,1.14947206,2573.2,2573.1,3.88636275]
[1749150673592,1.14947206,2573.2,2572.4,3.8874203]
[1749150673593,7.3039,2573.2,2572.4,3.8874203]
[1749150673799,7.3039,2573.2,2572.5,0.38874203]